fUST/lending_fUST_20250724
["ID","MTS","AMOUNT","RATE_DAILY","PERIOD"]
[374460047,1753308653089,-641.21,0.00023835,3]
[374460048,1753308653099,-1572.5,0.00023835,2]
[374460049,1753308653109,-460.0,0.00023835,2]
[374460050,1753308653119,-2341.53,0.00023835,2]
[374460051,1753308653129,-948.27,0.00023835,2]
[374460052,1753308653140,-920.38,0.00023835,2]
[374460053,1753308653150,-1018.41,0.00023835,2]
[374460054,1753308653159,-1015.25,0.00023835,2]
[374460055,1753308653170,-589.14,0.00023835,2]
[374460056,1753308653182,-549.98,0.00023835,2]
[374460057,1753308653191,-789.16,0.00023835,2]
[374460058,1753308653201,-547.25,0.00023835,2]
[374460059,1753308653212,-657.0,0.00023836,2]
[374460060,1753308653221,-426.0,0.00023836,2]
[374460061,1753308653231,-333.814116,0.00023841,6]
[374460062,1753308653241,-205.0,0.0002389,2]
[374460063,1753308653250,-1291.23329346,0.000239,2]
[374460064,1753308653260,-641.21,0.00023935,2]
[374460065,1753308653270,-151.0,0.00023935,7]
[374460066,1753308653280,-636.71599,0.00023935,7]
[374460067,1753308653290,-636.71599,0.00023935,7]
[374460068,1753308653299,-151.0,0.00023954,7]
[374460069,1753308653309,-1715.358685,0.00023954,7]
[374460070,1753308653318,-333.814116,0.00023954,10]
[374460071,1753308653327,-333.814116,0.00023954,10]
[374460072,1753308653337,-371.75213804,0.00024,7]
[374460073,1753308653347,-10144.96981295,0.00024,5]
[374460074,1753308653357,-160.0,0.00024,7]
[374460075,1753308653367,-160.0,0.00024,7]
[374460076,1753308653376,-231.11583447,0.00024,7]
[374460077,1753308653386,-231.11583447,0.00024,10]
[374460078,1753308653397,-160.0,0.00024,7]
[374460079,1753308653407,-3253.73,0.00024,7]
[374460080,1753308653417,-151.0,0.00024,7]
[374460081,1753308653428,-215.84326551,0.00024,7]
[374460082,1753308653438,-505.025314,0.00024,7]
[374460083,1753308653447,-505.025314,0.00024,7]
[374460084,1753308653458,-151.0,0.00024,7]
[374460085,1753308653470,-151.0,0.00024,7]
[374460086,1753308653480,-151.0,0.00024,7]
[374460087,1753308653493,-151.0,0.00024,7]
[374460088,1753308653508,-898.847953,0.00024,7]
[374460089,1753308653522,-898.847953,0.00024,7]
[374460090,1753308653533,-151.0,0.00024,7]
[374460091,1753308653544,-151.0,0.00024,7]
[374460092,1753308653553,-442.09035,0.00024,7]
[374460093,1753308653563,-442.09035,0.00024,7]
[374460094,1753308653572,-297.794752,0.00024,7]
[374460095,1753308653583,-297.794752,0.00024,7]
[374460096,1753308653593,-218.178473,0.00024,7]
[374460097,1753308653603,-218.178467,0.00024,7]
[374460098,1753308653612,-840.06856235,0.00024,7]
[374460099,1753308653623,-575.08,0.00024031,2]
[374460100,1753308653632,-615.24,0.00024031,2]
[374460101,1753308653642,-751.284118,0.00024032,7]
[374460102,1753308653652,-751.284118,0.00024032,7]
[374460103,1753308653661,-424.346156,0.00024032,7]
[374460104,1753308653673,-424.346156,0.00024032,7]
[374460105,1753308653683,-151.0,0.00024033,7]
[374460106,1753308653693,-151.0,0.00024033,7]
[374460107,1753308653703,-151.0,0.00024034,7]
[374460108,1753308653713,-151.0,0.00024034,7]
[374460109,1753308653725,-151.0,0.00024034,7]
[374460110,1753308653735,-641.21,0.00024035,3]
[374460111,1753308653746,-292.544388,0.00024035,7]
[374460112,1753308653755,-216.313048,0.00024035,7]
[374460113,1753308653767,-216.313048,0.00024035,7]
[374460114,1753308653777,-151.0,0.00024035,7]
[374460115,1753308653787,-765.711601,0.00024035,7]
[374460116,1753308653796,-765.711592,0.00024035,7]
[374460117,1753308653808,-151.0,0.00024035,7]
[374460118,1753308653817,-236.142242,0.00024035,7]
[374460119,1753308653830,-387.1,0.00024047,7]
[374460120,1753308653839,-429.674968,0.00024055,2]
[374460121,1753308653849,-429.674968,0.00024055,2]
[374460122,1753308653858,-429.674968,0.00024055,2]
[374460123,1753308653868,-333.814116,0.00024083,3]
[374460124,1753308653877,-333.814116,0.00024083,3]
[374460125,1753308653887,-156.366059,0.00024083,3]
[374460126,1753308653897,-200.043163,0.00024083,3]
[374460127,1753308653906,-500.0,0.00024091,2]
[374460128,1753308653915,-151.0,0.00024093,7]
[374460129,1753308653926,-274.043886,0.00024093,7]
[374460130,1753308653937,-9254.37008719,0.000241,4]
[374460131,1753308653946,-193.400257,0.000241,7]
[374460132,1753308653955,-193.400257,0.000241,7]
[374460133,1753308653965,-151.0,0.000241,7]
[374460134,1753308653976,-151.0,0.000241,7]
[374460135,1753308653986,-151.0,0.000241,7]
[374460136,1753308653996,-151.0,0.000241,7]
[374460137,1753308654007,-151.0,0.000241,7]
[374460138,1753308654018,-151.0,0.000241,7]
[374460139,1753308654028,-151.0,0.000241,7]
[374460140,1753308654038,-151.0,0.000241,7]
[374460141,1753308654048,-151.0,0.000241,7]
[374460142,1753308654057,-237.838426,0.000241,7]
[374460143,1753308654067,-237.838426,0.000241,7]
[374460144,1753308654077,-151.0,0.000241,7]
[374460145,1753308654087,-151.0,0.000241,7]
[374460146,1753308654097,-151.0,0.000241,7]
[374460147,1753308654107,-151.0,0.000241,7]
[374460148,1753308654117,-151.0,0.000241,7]
[374460149,1753308654126,-151.0,0.000241,8]
[374460150,1753308654136,-151.0,0.000241,7]
[374460151,1753308654147,-1572.5,0.00024109,2]
[374460152,1753308654157,-460.0,0.00024109,2]
[374460153,1753308654167,-2341.53,0.00024109,2]
[374460154,1753308654177,-948.27,0.00024109,2]
[374460155,1753308654188,-920.38,0.00024109,2]
[374460156,1753308654197,-1018.41,0.00024109,2]
[374460157,1753308654207,-1015.25,0.00024109,2]
[374460158,1753308654216,-589.14,0.00024109,2]
[374460159,1753308654226,-549.98,0.00024109,2]
[374460160,1753308654237,-789.16,0.00024109,2]
[374460161,1753308654249,-547.25,0.00024109,2]
[374460162,1753308654260,-657.0,0.0002411,2]
[374460163,1753308654269,-426.0,0.0002411,2]
[374460164,1753308654279,-2200.0,0.00024119,2]
[374460165,1753308654289,-641.21,0.00024135,2]
[374460166,1753308654299,-160.0,0.00024138,4]
[374460167,1753308654309,-600.0,0.00024153,7]
[374460168,1753308654321,-154.0,0.00024164,7]
[374460169,1753308654332,-1000.0,0.00024168,2]
[374460170,1753308654343,-450.0,0.00024168,2]
[374460171,1753308654353,-333.814116,0.00024185,6]
[374460172,1753308654362,-500.0,0.00024197,2]
[374460173,1753308654374,-151.0,0.000242,7]
[374460174,1753308654383,-151.0,0.000242,7]
[374460175,1753308654394,-160.521387,0.000242,7]
[374460176,1753308654406,-160.521387,0.000242,7]
[374460177,1753308654417,-500.0,0.00024228,2]
[374460178,1753308654426,-641.21,0.00024235,2]
[374460179,1753308654436,-205.0,0.0002424,2]
[374460180,1753308654446,-661.618724,0.00024263,7]
[374460181,1753308654455,-661.618724,0.00024263,7]
[374460182,1753308654465,-333.814116,0.00024275,2]
[374460183,1753308654474,-12000.0,0.000243,4]
[374460184,1753308654484,-151.0,0.000243,7]
[374460185,1753308654494,-636.71599,0.000243,7]
[374460186,1753308654504,-636.71599,0.000243,7]
[374460187,1753308654513,-151.0,0.000243,7]
[374460188,1753308654523,-1715.358685,0.000243,7]
[374460189,1753308654532,-575.08,0.00024305,2]
[374460190,1753308654542,-615.24,0.00024305,2]
[374460191,1753308654551,-508.32637467,0.00024308,2]
[374460192,1753308654560,-1059.123288,0.00024314,12]
[374460193,1753308654570,-500.0,0.00024316,2]
[374460194,1753308654580,-151.0,0.00024318,7]
[374460195,1753308654590,-151.0,0.00024318,7]
[374460196,1753308654600,-151.0,0.00024318,7]
[374460197,1753308654609,-151.0,0.00024318,7]
[374460198,1753308654619,-442.09035,0.00024318,7]
[374460199,1753308654628,-442.09035,0.00024318,7]
[374460200,1753308654638,-297.794752,0.00024318,7]
[374460201,1753308654648,-297.794752,0.00024318,7]
[374460202,1753308654658,-320.2640176,0.00024323,2]
[374460203,1753308654667,-429.674968,0.00024329,2]
[374460204,1753308654679,-641.21,0.00024335,7]
[374460205,1753308654689,-151.0,0.00024335,7]
[374460206,1753308654698,-290.865778,0.00024335,7]
[374460207,1753308654707,-757.46974392,0.0002434,12]
[374460208,1753308654718,-231.28369723,0.00024343,2]
[374460209,1753308654727,-151.0,0.0002435,7]
[374460210,1753308654736,-505.025314,0.0002435,7]
[374460211,1753308654745,-505.025314,0.0002435,7]
[374460212,1753308654756,-898.847953,0.0002435,7]
[374460213,1753308654765,-898.847953,0.0002435,7]
[374460214,1753308654774,-269.14032,0.0002435,7]
[374460215,1753308654783,-387.1,0.00024365,7]
[374460216,1753308654792,-500.0,0.00024365,2]
[374460217,1753308654801,-302.0,0.00024371,2]
[374460218,1753308654810,-6172.65,0.00024373,10]
[374460219,1753308654819,-302.0,0.00024376,2]
[374460220,1753308654828,-151.0,0.00024383,7]
[374460221,1753308654837,-1500.0,0.00024383,14]
[374460222,1753308654847,-1500.0,0.00024383,14]
[374460223,1753308654856,-1500.0,0.00024383,14]
[374460224,1753308654866,-1500.0,0.00024383,14]
[374460225,1753308654875,-1500.0,0.00024383,14]
[374460226,1753308654884,-1500.0,0.00024383,14]
[374460227,1753308654893,-1500.0,0.00024383,14]
[374460228,1753308654902,-1500.0,0.00024383,14]
[374460229,1753308654911,-1500.0,0.00024383,14]
[374460230,1753308654920,-1500.0,0.00024383,14]
[374460231,1753308654929,-1500.0,0.00024383,14]
[374460232,1753308654940,-1500.0,0.00024383,14]
[374460233,1753308654949,-1500.0,0.00024383,14]
[374460234,1753308654959,-1500.0,0.00024383,14]
[374460235,1753308654968,-1500.0,0.00024383,14]
[374460236,1753308654977,-1500.0,0.00024383,14]
[374460237,1753308654987,-1500.0,0.00024383,14]
[374460238,1753308654996,-1500.0,0.00024383,14]
[374460239,1753308655006,-1500.0,0.00024383,14]
[374460240,1753308655015,-1500.0,0.00024383,14]
[374460241,1753308655025,-1500.0,0.00024383,14]
[374460242,1753308655034,-1161.274647,0.00024383,14]
[374460243,1753308655043,-151.0,0.00024383,7]
[374460244,1753308655053,-151.0,0.00024383,7]
[374460245,1753308655162,-424.346156,0.00024383,7]
[374460246,1753308655171,-424.346156,0.00024383,7]
[374460247,1753308655181,-216.313048,0.00024383,7]
[374460248,1753308655193,-216.31305,0.00024383,7]
[374460249,1753308655202,-1572.5,0.00024383,2]
[374460250,1753308655211,-460.0,0.00024383,2]
[374460251,1753308655220,-2341.53,0.00024383,2]
[374460252,1753308655230,-948.27,0.00024383,2]
[374460253,1753308655239,-920.38,0.00024383,2]
[374460254,1753308655248,-1018.41,0.00024383,2]
[374460255,1753308655257,-1015.25,0.00024383,2]
[374460256,1753308655267,-589.14,0.00024383,2]
[374460257,1753308655276,-151.0,0.00024383,7]
[374460258,1753308655285,-549.98,0.00024383,2]
[374460259,1753308655294,-789.16,0.00024383,2]
[374460260,1753308655303,-547.25,0.00024383,2]
[374460261,1753308655312,-657.0,0.00024383,2]
[374460262,1753308655321,-426.0,0.00024383,2]
[374460263,1753308655330,-27505.68,0.000244,2]
[374460264,1753308655339,-151.0,0.000244,7]
[374460265,1753308655348,-151.0,0.000244,7]
[374460266,1753308655357,-151.0,0.000244,7]
[374460267,1753308655366,-151.0,0.000244,7]
[374460268,1753308655375,-151.0,0.000244,7]
[374460269,1753308655384,-751.284118,0.000244,7]
[374460270,1753308655394,-751.284118,0.000244,7]
[374460271,1753308655403,-151.0,0.000244,5]
[374460272,1753308655412,-333.814116,0.0002443,10]
[374460273,1753308655421,-333.814116,0.0002443,10]
[374460274,1753308655431,-641.21,0.00024435,2]
[374460275,1753308655444,-1150.401182,0.0002444,5]
[374460276,1753308655453,-1000.0,0.0002446,5]
[374460277,1753308655462,-500.0,0.0002446,2]
[374460278,1753308655471,-153.0,0.00024466,2]
[374460279,1753308655480,-153.0,0.00024466,2]
[374460280,1753308655489,-153.0,0.00024466,2]
[374460281,1753308655498,-153.0,0.00024466,2]
[374460282,1753308655508,-1000.0,0.0002448,5]
[374460283,1753308655517,-151.0,0.00024482,7]
[374460284,1753308655525,-1177.0,0.000245,30]
[374460285,1753308655535,-151.0,0.000245,7]
[374460286,1753308655544,-151.0,0.000245,7]
[374460287,1753308655554,-1000.0,0.000245,5]
[374460288,1753308655563,-500.0,0.00024504,2]
[374460289,1753308655571,-1000.0,0.0002452,5]
[374460290,1753308655580,-333.814116,0.00024529,6]
[374460291,1753308655589,-333.814116,0.00024529,6]
[374460292,1753308655598,-641.21,0.00024535,6]
[374460293,1753308655607,-1000.0,0.0002454,5]
[374460294,1753308655617,-1754.55643256,0.0002455,2]
[374460295,1753308655626,-705.07564721,0.00024557,12]
[374460296,1753308655636,-1000.0,0.0002456,5]
[374460297,1753308655645,-575.08,0.00024579,2]
[374460298,1753308655655,-615.24,0.00024579,2]
[374460299,1753308655664,-1000.0,0.0002458,5]
[374460300,1753308655675,-151.0,0.00024583,7]
[374460301,1753308655688,-270.221298,0.00024583,7]
[374460302,1753308655697,-151.0,0.00024583,7]
[374460303,1753308655706,-237.838426,0.00024583,7]
[374460304,1753308655715,-237.838426,0.00024583,7]
[374460305,1753308655724,-424.346156,0.00024583,7]
[374460306,1753308655733,-424.346148,0.00024583,7]
[374460307,1753308655742,-205.0,0.0002459,2]
[374460308,1753308655753,-600.0,0.00024594,8]
[374460309,1753308655763,-12000.0,0.000246,4]
[374460310,1753308655772,-193.400257,0.000246,7]
[374460311,1753308655782,-193.400257,0.000246,7]
[374460312,1753308655792,-151.0,0.000246,7]
[374460313,1753308655802,-151.0,0.000246,7]
[374460314,1753308655811,-151.0,0.000246,7]
[374460315,1753308655821,-151.0,0.000246,7]
[374460316,1753308655830,-151.0,0.000246,7]
[374460317,1753308655839,-151.0,0.000246,7]
[374460318,1753308655849,-661.618724,0.000246,7]
[374460319,1753308655858,-661.618724,0.000246,7]
[374460320,1753308655868,-151.0,0.000246,7]
[374460321,1753308655877,-160.521387,0.000246,7]
[374460322,1753308655887,-160.521387,0.000246,7]
[374460323,1753308655896,-235.417346,0.000246,7]
[374460324,1753308655905,-151.0,0.000246,7]
[374460325,1753308655915,-442.09035,0.000246,7]
[374460326,1753308655924,-442.09035,0.000246,7]
[374460327,1753308655934,-1000.0,0.000246,5]
[374460328,1753308655944,-1754.55643248,0.00024622,2]
[374460329,1753308655953,-641.21,0.00024635,6]
[374460330,1753308655964,-1000.0,0.00024649,4]
[374460331,1753308655973,-1000.0,0.00024649,11]
[374460332,1753308655983,-1000.0,0.00024649,18]
[374460333,1753308655994,-7089.02411743,0.0002465,2]
[374460334,1753308656112,-72393.58369171,0.0002465,2]
[374460335,1753308656121,-193.400257,0.0002465,7]
[374460336,1753308656131,-193.400257,0.0002465,7]
[374460337,1753308656140,-151.0,0.0002465,7]
[374460338,1753308656150,-151.0,0.0002465,7]
[374460339,1753308656159,-151.0,0.0002465,7]
[374460340,1753308656168,-151.0,0.0002465,7]
[374460341,1753308656178,-151.0,0.0002465,7]
[374460342,1753308656189,-151.0,0.0002465,7]
[374460343,1753308656199,-151.0,0.0002465,7]
[374460344,1753308656208,-151.0,0.0002465,7]
[374460345,1753308656218,-151.0,0.0002465,7]
[374460346,1753308656227,-237.838426,0.0002465,7]
[374460347,1753308656236,-237.838426,0.0002465,7]
[374460348,1753308656246,-151.0,0.0002465,7]
[374460349,1753308656256,-151.0,0.0002465,7]
[374460350,1753308656266,-151.0,0.0002465,7]
[374460351,1753308656275,-636.71599,0.0002465,7]
[374460352,1753308656285,-636.71599,0.0002465,7]
[374460353,1753308656294,-151.0,0.0002465,7]
[374460354,1753308656304,-151.0,0.0002465,7]
[374460355,1753308656313,-661.618724,0.0002465,7]
[374460356,1753308656323,-661.618724,0.0002465,7]
[374460357,1753308656332,-151.0,0.0002465,7]
[374460358,1753308656342,-151.0,0.0002465,7]
[374460359,1753308656352,-1715.358685,0.0002465,7]
[374460360,1753308656361,-1715.358685,0.0002465,7]
[374460361,1753308656371,-151.0,0.0002465,7]
[374460362,1753308656380,-256.89256,0.0002465,7]
[374460363,1753308656390,-160.521387,0.0002465,7]
[374460364,1753308656399,-160.521387,0.0002465,7]
[374460365,1753308656408,-751.284118,0.0002465,7]
[374460366,1753308656418,-751.284118,0.0002465,7]
[374460367,1753308656427,-505.025314,0.0002465,7]
[374460368,1753308656438,-505.025314,0.0002465,7]
[374460369,1753308656448,-151.0,0.0002465,7]
[374460370,1753308656457,-154.53974,0.0002465,7]
[374460371,1753308656467,-898.847953,0.0002465,7]
[374460372,1753308656476,-898.847953,0.0002465,7]
[374460373,1753308656485,-151.0,0.0002465,7]
[374460374,1753308656494,-151.0,0.0002465,7]
[374460375,1753308656503,-442.09035,0.0002465,7]
[374460376,1753308656512,-442.09035,0.0002465,7]
[374460377,1753308656522,-297.794752,0.0002465,7]
[374460378,1753308656531,-297.794742,0.0002465,7]
[374460379,1753308656540,-151.0,0.00024657,7]
[374460380,1753308656549,-151.0,0.00024657,7]
[374460381,1753308656559,-151.0,0.00024657,7]
[374460382,1753308656572,-541.78,0.00024657,2]
[374460383,1753308656582,-541.78,0.00024657,2]
[374460384,1753308656597,-541.78,0.00024657,2]
[374460385,1753308656610,-541.78,0.00024657,2]
[374460386,1753308656629,-541.78,0.00024657,2]
[374460387,1753308656639,-541.78,0.00024657,2]
[374460388,1753308656649,-541.78,0.00024657,2]
[374460389,1753308656659,-541.78,0.00024657,2]
[374460390,1753308656670,-541.78,0.00024657,2]
[374460391,1753308656685,-541.78,0.00024657,2]
[374460392,1753308656697,-541.78,0.00024657,2]
[374460393,1753308656707,-541.78,0.00024657,2]
[374460394,1753308656717,-541.78,0.00024657,2]
[374460395,1753308656727,-541.78,0.00024657,2]
[374460396,1753308656737,-541.78,0.00024657,2]
[374460397,1753308656747,-1572.5,0.00024657,2]
[374460398,1753308656757,-541.78,0.00024657,2]
[374460399,1753308656767,-541.78,0.00024657,2]
[374460400,1753308656776,-541.78,0.00024657,2]
[374460401,1753308656785,-541.78,0.00024657,2]
[374460402,1753308656796,-541.78,0.00024657,2]
[374460403,1753308656806,-541.78,0.00024657,2]
[374460404,1753308656817,-460.0,0.00024657,2]
[374460405,1753308656827,-2341.53,0.00024657,2]
[374460406,1753308656838,-948.27,0.00024657,2]
[374460407,1753308656846,-920.38,0.00024657,2]
[374460408,1753308656859,-1018.41,0.00024657,2]
[374460409,1753308656869,-1015.25,0.00024657,2]
[374460410,1753308656879,-589.14,0.00024657,2]
[374460411,1753308656890,-549.98,0.00024657,2]
[374460412,1753308656901,-789.16,0.00024657,2]
[374460413,1753308656911,-547.25,0.00024657,2]
[374460414,1753308656920,-657.0,0.00024657,2]
[374460415,1753308656930,-426.0,0.00024657,2]
[374460416,1753308656940,-200.0,0.00024658,15]
[374460417,1753308656949,-380.0,0.00024658,2]
[374460418,1753308656960,-200.0,0.00024658,2]
[374460419,1753308656970,-151.0,0.00024658,7]
[374460420,1753308656981,-151.0,0.00024658,7]
[374460421,1753308656991,-151.0,0.00024658,7]
[374460422,1753308657002,-151.0,0.00024658,7]
[374460423,1753308657012,-151.0,0.00024658,7]
[374460424,1753308657022,-151.0,0.00024658,7]
[374460425,1753308657031,-151.0,0.00024658,7]
[374460426,1753308657042,-151.0,0.00024658,7]
[374460427,1753308657051,-151.0,0.00024658,7]
[374460428,1753308657061,-151.0,0.00024658,7]
[374460429,1753308657071,-151.0,0.00024658,2]
[374460430,1753308657081,-500.0,0.00024668,2]
[374460431,1753308657090,-500.0,0.00024673,2]
[374460432,1753308657099,-387.1,0.00024682,7]
[374460433,1753308657109,-1754.55643248,0.00024694,2]
[374460434,1753308657119,-2267.49,0.000247,7]
[374460435,1753308657129,-151.0,0.000247,6]
[374460436,1753308657139,-18412.5,0.000247,7]
[374460437,1753308657149,-3815.37,0.000247,7]
[374460438,1753308657159,-500.0,0.0002471,2]
[374460439,1753308657170,-300.0,0.00024716,2]
[374460440,1753308657179,-229.56248331,0.00024726,30]
[374460441,1753308657188,-641.21,0.00024735,2]
[374460442,1753308657198,-500.0,0.00024735,2]
[374460443,1753308657208,-1754.55643248,0.00024766,2]
[374460444,1753308657217,-3360.6439601,0.00024774,2]
[374460445,1753308657226,-7414.40319022,0.0002479,2]
[374460446,1753308657236,-150.0,0.00024792,2]
[374460447,1753308657245,-500.0,0.00024795,2]
[374460448,1753308657254,-15872.21103172,0.000248,7]
[374460449,1753308657263,-9322.86644711,0.000248,2]
[374460450,1753308657272,-193.400257,0.000248,7]
[374460451,1753308657282,-193.400265,0.000248,7]
[374460452,1753308657291,-200.296632,0.000248,7]
[374460453,1753308657301,-264.372076,0.000248,7]
[374460454,1753308657310,-237.838426,0.000248,7]
[374460455,1753308657320,-237.838426,0.000248,7]
[374460456,1753308657329,-151.0,0.000248,7]
[374460457,1753308657339,-442.09035,0.000248,7]
[374460458,1753308657348,-442.09035,0.000248,7]
[374460459,1753308657357,-500.0,0.00024827,2]
[374460460,1753308657366,-641.21,0.00024835,3]
[374460461,1753308657377,-1754.55643248,0.00024838,2]
[374460462,1753308657385,-407.0,0.00024852,2]
[374460463,1753308657395,-407.0,0.00024852,2]
[374460464,1753308657404,-575.08,0.00024853,2]
[374460465,1753308657414,-615.24,0.00024853,2]
[374460466,1753308657423,-500.0,0.00024873,2]
[374460467,1753308657436,-150.11983124,0.00024873,2]
[374460468,1753308657446,-500.0,0.00024873,2]
[374460469,1753308657456,-500.0,0.00024884,2]
[374460470,1753308657465,-151.0,0.00024888,7]
[374460471,1753308657475,-151.0,0.00024888,7]
[374460472,1753308657487,-166.910665,0.00024888,7]
[374460473,1753308657497,-151.0,0.00024888,7]
[374460474,1753308657507,-151.0,0.00024888,7]
[374460475,1753308657518,-195.283098,0.00024888,7]
[374460476,1753308657528,-237.838426,0.00024888,7]
[374460477,1753308657538,-237.838426,0.00024888,7]
[374460478,1753308657548,-151.0,0.00024888,7]
[374460479,1753308657557,-216.495096,0.00024888,7]
[374460480,1753308657567,-151.0,0.00024888,7]
[374460481,1753308657576,-73294.89809448,0.00024888,2]
[374460482,1753308657590,-6482.05006245,0.00024888,2]
[374460483,1753308657800,-460.0,0.00019178,2]
[374460484,1753308657812,-411.8078171,0.00019452,2]
[374460485,1753308657823,-160.0,0.00023,3]
[374460486,1753308657832,-324.0,0.00023401,3]
[374460487,1753308657844,-160.0,0.00024,7]
[374460488,1753308657854,-670.0,0.00024658,2]
[374460489,1753308657865,-1166.57196467,0.00024888,2]
[374460490,1753308657875,-151.0,0.00024888,7]
[374460491,1753308657885,-164.347372,0.00024888,7]
[374460492,1753308657897,-151.0,0.00024888,7]
[374460493,1753308657908,-636.71599,0.00024888,7]
[374460494,1753308657919,-636.71599,0.00024888,7]
[374460495,1753308657928,-151.0,0.00024888,7]
[374460496,1753308657939,-151.0,0.00024888,7]
[374460497,1753308657949,-661.618724,0.00024888,7]
[374460498,1753308657959,-661.618724,0.00024888,7]
[374460499,1753308657968,-151.0,0.00024888,7]
[374460500,1753308657979,-151.0,0.00024888,7]
[374460501,1753308657989,-1715.358685,0.00024888,7]
[374460502,1753308657998,-1715.358685,0.00024888,7]
[374460503,1753308658008,-151.0,0.00024888,7]
[374460504,1753308658019,-160.521387,0.00024888,7]
[374460505,1753308658029,-160.521394,0.00024888,7]
[374460506,1753308658040,-751.284118,0.00024888,7]
[374460507,1753308658050,-751.284118,0.00024888,7]
[374460508,1753308658060,-505.025314,0.00024888,7]
[374460509,1753308658070,-505.025314,0.00024888,7]
[374460510,1753308658079,-898.847953,0.00024888,7]
[374460511,1753308658089,-898.847953,0.00024888,7]
[374460512,1753308658099,-151.0,0.00024888,7]
[374460513,1753308658108,-442.09035,0.00024888,7]
[374460514,1753308658117,-442.09035,0.00024888,7]
[374460515,1753308658127,-25685.86751637,0.0002489,15]
[374460516,1753308658152,-12899.20628428,0.0002489,15]
[374460517,1753308658163,-15844.92377933,0.0002489,15]
[374460518,1753308658377,-460.0,0.00019178,2]
[374460519,1753308658387,-460.0,0.00019178,2]
[374460520,1753308658397,-460.0,0.00019452,2]
[374460521,1753308658407,-160.0,0.000232,3]
[374460522,1753308658417,-16478.29490382,0.0002489,15]
[374460523,1753308658469,-460.0,0.00019178,2]
[374460524,1753308658480,-267.86384231,0.0002489,15]
[374460526,1753308950885,-191.49565317,0.00018101,2]
[374460527,1753309270497,229.56248331,0.00026027,120]
[374460528,1753309283127,223.923673,0.00013699,2]
[374460531,1753309535087,-1008.7301777,0.0001792,2]
[374460532,1753309536085,-342.06494218,0.0001792,2]
[374460533,1753309536105,-188.39240436,0.00018,2]
[374460534,1753309536127,-238.0,0.000181,2]
[374460535,1753309536151,-300.0,0.000181,2]
[374460536,1753309536172,-300.0,0.000181,2]
[374460537,1753309536195,-495.0,0.000181,2]
[374460538,1753309536216,-300.0,0.000181,2]
[374460539,1753309536238,-261.8843504,0.00018101,2]
[374460540,1753309583639,-292.36831764,0.00017564,2]
[374460541,1753309586776,-226.49149221,0.00017564,2]
[374460542,1753309635085,-201.1749244,0.00017037,2]
[374460543,1753309635106,-300.0,0.00017563,2]
[374460544,1753309635127,-160.0124071,0.00017564,2]
[374460545,1753309644117,-169.48136937,0.00017564,2]
[374460546,1753309647151,-1122.1310615,0.00017564,2]
[374460559,1753309728299,-233.70346677,0.00017388,2]
[374460560,1753309735024,-191.13294555,0.00017388,2]
[374460561,1753309745123,-1115.84859021,0.00017388,2]